[Event "WTCC-50 2018"]
[Site "Radebeul"]
[Date "2018.07.10"]
[Round "4"]
[White "Marwitz, Tino"]
[Black "Teo, Kok Siong"]
[Result "1/2-1/2"]
[ECO "E06"]
[WhiteElo "2031"]
[BlackElo "2213"]
[Annotator "NA"]
[PlyCount "38"]
[EventDate "2018.07.07"]
[EventType "team-tourn"]
[EventCountry "GER"]
[SourceTitle "playchess.com"]
[Source "ChessBase"]
[SourceQuality "1"]
[TimeControl "40/5400+30:1800+30"]

1. d4 {[%emt 0:00:00]} Nf6 {[%emt 0:00:00]} 2. c4 {[%emt 0:00:07]} e6 {[%emt 0:01:26]} 3. g3 {[%emt 0:00:17]} d5 {[%emt 0:04:51]} 4. Bg2 {[%emt 0:00:28]} Be7 {[%emt 0:01:52]} 5. Nf3 {[%emt 0:00:06]} O-O {[%emt 0:00:27]} 6. O-O {[%emt 0:00:04]} b6 {[%emt 0:04:47]} 7. Nc3 {[%emt 0:00:23]} Bb7 {[%emt 0:00:41]} 8. cxd5 {[%emt 0:01:03]} Nxd5 {[%emt 0:05:43]} 9. Re1 {[%emt 0:01:50]} Nxc3 {[%emt 0:01:46]} 10. bxc3 {[%emt 0:00:07]} c5 {[%emt 0:17:02]} 11. e4 {[%emt 0:05:18]} Nd7 {[%emt 0:03:35]} 12. e5 {[%emt 0:06:04]} b5 {[%emt 0:07:11]} 13. Rb1 {[%emt 0:01:23]} Qa5 {[%emt 0:06:16]} 14. Bd2 {[%emt 0:05:47]} Rab8 {[%emt 0:07:41]} 15. c4 {[%emt 0:04:55]} Qxa2 {[%emt 0:03:03]} 16. cxb5 {[%emt 0:00:23]} cxd4 {[%emt 0:00:41]} 17. Bb4 Bxb4 {[%emt 0:08:09]} 18. Rxb4 {[%emt 0:05:34]} d3 {[%emt 0:02:43]} 19. Qxd3 Nc5 1/2-1/2

[Event "WTCC-50 2018"]
[Site "Radebeul"]
[Date "2018.07.10"]
[Round "4"]
[White "Habel, Christof"]
[Black "Fegan, Chris"]
[Result "1/2-1/2"]
[ECO "A80"]
[WhiteElo "2026"]
[BlackElo "2040"]
[Annotator "NA"]
[PlyCount "87"]
[EventDate "2018.07.07"]
[EventType "team-tourn"]
[EventCountry "GER"]
[SourceTitle "playchess.com"]
[Source "ChessBase"]
[SourceQuality "1"]
[TimeControl "40/5400+30:1800+30"]

1. d4 {[%emt 0:00:00]} f5 {[%emt 0:00:00]} 2. Nc3 {[%emt 0:00:25]} Nf6 {[%emt 0:00:00]} 3. Bg5 {[%emt 0:00:35]} g6 {[%emt 0:00:34]} 4. Bxf6 {[%emt 0:03:01]} exf6 {[%emt 0:00:08]} 5. d5 {[%emt 0:01:42]} d6 {[%emt 0:02:38]} 6. Nf3 {[%emt 0:01:51]} Bg7 {[%emt 0:01:41]} 7. e3 {[%emt 0:00:37]} O-O {[%emt 0:03:49]} 8. Bd3 {[%emt 0:00:42]} Nd7 {[%emt 0:01:18]} 9. Nd4 {[%emt 0:03:42]} Ne5 {[%emt 0:01:57]} 10. h4 {[%emt 0:00:19]} c5 {[%emt 0:01:56]} 11. dxc6 {[%emt 0:02:21]} bxc6 {[%emt 0:03:07]} 12. h5 {[%emt 0:00:14]} Qb6 {[%emt 0:03:26]} 13. b3 {[%emt 0:08:26]} f4 {[%emt 0:05:07]} 14. Na4 {[%emt 0:11:38]} Qa5+ {[%emt 0:07:40]} 15. Qd2 {[%emt 0:00:42]} Nxd3+ {[%emt 0:03:31]} 16. cxd3 {[%emt 0:02:04]} Qe5 {[%emt 0:06:54]} 17. hxg6 {[%emt 0:15:47]} hxg6 {[%emt 0:01:55]} 18. Rb1 {[%emt 0:10:56]} Re8 {[%emt 0:06:51]} 19. Nc2 {[%emt 0:01:27]} Qg5 {[%emt 0:05:44]} 20. Kf1 {[%emt 0:04:11]} fxe3 {[%emt 0:05:46]} 21. Nxe3 {[%emt 0:05:36]} Ba6 {[%emt 0:01:25]} 22. Nb2 {[%emt 0:01:35]} d5 {[%emt 0:02:18]} 23. Rh3 {[%emt 0:00:31]} f5 {[%emt 0:05:45]} 24. Na4 {[%emt 0:10:24]} Bh6 {[%emt 0:09:27]} 25. Nc5 {[%emt 0:01:54]} Bc8 {[%emt 0:03:45]} 26. Rg3 {[%emt 0:00:48]} Qh5 {[%emt 0:06:20]} 27. Rh3 {[%emt 0:00:32]} Bxe3 {[%emt 0:04:38]} 28. fxe3 {[%emt 0:00:53]} Qg4 {[%emt 0:01:34]} 29. Qc3 {[%emt 0:01:10]} d4 {[%emt 0:01:07]} 30. Qxd4 {[%emt 0:00:10]} Qxd4 {[%emt 0:00:29]} 31. exd4 {[%emt 0:00:01]} Rd8 {[%emt 0:01:49]} 32. Re1 {[%emt 0:00:49]} Kg7 {[%emt 0:01:57]} 33. Re7+ {[%emt 0:04:16]} Kf6 {[%emt 0:00:12]} 34. Rc7 {[%emt 0:00:32]} Rxd4 {[%emt 0:01:14]} 35. Rxc6+ {[%emt 0:00:21]} Kg5 {[%emt 0:00:31]} 36. Re3 {[%emt 0:05:04]} f4 {[%emt 0:00:47]} 37. Re5+ {[%emt 0:00:54]} Kh6 {[%emt 0:00:30]} 38. Rc7 {[%emt 0:01:27]} Bf5 {[%emt 0:00:24]} 39. Rf7 {[%emt 0:00:22]} a5 {[%emt 0:00:41]} 40. Rf6 {[%emt 0:00:27]} Kg5 {[%emt 0:00:27]} 41. Rb6 {[%emt 0:31:32]} Kg4 {[%emt 0:04:08]} 42. Kf2 {[%emt 0:00:00]} Rh8 {[%emt 0:08:31]} 43. Rf6 {[%emt 0:00:00]} Rh1 {[%emt 0:03:53]} 44. Re2 {[%emt 0:00:00]} 1/2-1/2

[Event "WTCC-50 2018"]
[Site "Radebeul"]
[Date "2018.07.10"]
[Round "4"]
[White "Cordes, Steffen"]
[Black "Scheckenbach, Franz"]
[Result "0-1"]
[ECO "B90"]
[WhiteElo "1974"]
[BlackElo "2106"]
[Annotator "NA"]
[PlyCount "94"]
[EventDate "2018.07.07"]
[EventType "team-tourn"]
[EventCountry "GER"]
[SourceTitle "playchess.com"]
[Source "ChessBase"]
[SourceQuality "1"]
[TimeControl "40/5400+30:1800+30"]

1. e4 {[%emt 0:00:00]} c5 {[%emt 0:00:00]} 2. Nf3 {[%emt 0:00:00]} d6 {[%emt 0:00:00]} 3. Nc3 {[%emt 0:00:05]} Nf6 {[%emt 0:01:06]} 4. d4 {[%emt 0:00:09]} cxd4 {[%emt 0:00:10]} 5. Nxd4 {[%emt 0:00:07]} a6 {[%emt 0:00:25]} 6. Bc4 {[%emt 0:00:22]} e6 {[%emt 0:00:45]} 7. Bb3 {[%emt 0:00:08]} Nc6 {[%emt 0:02:39]} 8. Be3 {[%emt 0:02:56]} Bd7 {[%emt 0:05:34]} 9. Qe2 {[%emt 0:01:47]} Qc7 {[%emt 0:05:57]} 10. O-O-O {[%emt 0:01:14]} Na5 {[%emt 0:04:04]} 11. Kb1 {[%emt 0:00:56]} b5 {[%emt 0:01:52]} 12. Bc1 {[%emt 0:07:52]} b4 {[%emt 0:04:54]} 13. Na4 {[%emt 0:00:59]} e5 {[%emt 0:03:11]} 14. Nf5 {[%emt 0:03:46]} Bb5 {[%emt 0:07:23]} 15. Qe1 {[%emt 0:11:28]} Rc8 {[%emt 0:11:53]} 16. Ne3 {[%emt 0:26:33]} Nxb3 {[%emt 0:06:28]} 17. axb3 {[%emt 0:05:11]} Nxe4 {[%emt 0:06:23]} 18. f3 {[%emt 0:04:35]} Nf6 {[%emt 0:07:17]} 19. Qxb4 {[%emt 0:10:49]} d5 {[%emt 0:00:48]} 20. Qe1 {[%emt 0:00:26]} Be7 {[%emt 0:02:30]} 21. c3 {[%emt 0:03:42]} Bc6 {[%emt 0:17:12]} 22. Nf5 {[%emt 0:02:42]} O-O {[%emt 0:00:46]} 23. Be3 {[%emt 0:06:31]} Bxa4 {[%emt 0:02:46]} 24. bxa4 {[%emt 0:00:13]} Qd7 {[%emt 0:02:43]} 25. g4 {[%emt 0:00:47]} Rb8 {[%emt 0:01:04]} 26. Nxe7+ {[%emt 0:01:52]} Qxe7 {[%emt 0:00:04]} 27. g5 {[%emt 0:00:24]} Nh5 {[%emt 0:00:18]} 28. Rxd5 {[%emt 0:00:25]} Rxb2+ {[%emt 0:00:43]} 29. Kxb2 {[%emt 0:00:16]} Qb7+ {[%emt 0:00:04]} 30. Ka1 {[%emt 0:01:38]} Qxd5 {[%emt 0:00:07]} 31. Qd1 {[%emt 0:00:34]} Qc6 {[%emt 0:00:39]} 32. Bd2 {[%emt 0:01:52]} Rb8 {[%emt 0:01:25]} 33. Re1 {[%emt 0:01:13]} Qc5 {[%emt 0:00:24]} 34. Qc2 {[%emt 0:00:14]} g6 {[%emt 0:01:01]} 35. Rb1 {[%emt 0:01:13]} Rd8 {[%emt 0:00:38]} 36. Bc1 {[%emt 0:01:02]} Qc6 {[%emt 0:01:07]} 37. Qe4 {[%emt 0:00:56]} Qc7 {[%emt 0:00:52]} 38. Rb7 {[%emt 0:01:57]} Qc5 {[%emt 0:00:39]} 39. Rb1 {[%emt 0:01:19]} Nf4 {[%emt 0:00:30]} 40. Ka2 {[%emt 0:00:31]} Nd3 {[%emt 0:00:51]} 41. Bb2 {[%emt 0:30:47]} Nxb2 {[%emt 0:30:23]} 42. Rxb2 {[%emt 0:00:38]} Qxc3 {[%emt 0:00:23]} 43. Qb7 {[%emt 0:00:42]} Qc4+ {[%emt 0:02:13]} 44. Qb3 {[%emt 0:00:00]} Qf4 {[%emt 0:00:00]} 45. Rg2 {[%emt 0:00:00]} Rd4 {[%emt 0:00:00]} 46. Ka3 {[%emt 0:00:00]} a5 {[%emt 0:00:00]} 47. Qb5 {[%emt 0:00:00]} Qxf3+ {[%emt 0:00:00]} 0-1

[Event "WTCC-50 2018"]
[Site "Radebeul"]
[Date "2018.07.10"]
[Round "4"]
[White "Luger, Jens"]
[Black "Gempe, Thomas"]
[Result "1/2-1/2"]
[ECO "D70"]
[WhiteElo "1920"]
[BlackElo "2178"]
[Annotator "NA"]
[PlyCount "40"]
[EventDate "2018.07.07"]
[EventType "team-tourn"]
[EventCountry "GER"]
[SourceTitle "playchess.com"]
[Source "ChessBase"]
[SourceQuality "1"]
[TimeControl "40/5400+30:1800+30"]

1. d4 {[%emt 0:00:00]} Nf6 {[%emt 0:00:07]} 2. c4 {[%emt 0:00:00]} g6 {[%emt 0:00:47]} 3. Nf3 {[%emt 0:00:07]} Bg7 {[%emt 0:00:20]} 4. Nc3 {[%emt 0:00:08]} d5 {[%emt 0:00:13]} 5. h3 {[%emt 0:02:25]} O-O {[%emt 0:05:34]} 6. Bf4 {[%emt 0:00:33]} c5 {[%emt 0:02:35]} 7. e3 {[%emt 0:00:53]} Nc6 {[%emt 0:00:35]} 8. dxc5 {[%emt 0:03:13]} Qa5 {[%emt 0:02:07]} 9. Nd2 {[%emt 0:09:26]} dxc4 {[%emt 0:20:51]} 10. Bxc4 {[%emt 0:07:43]} Qxc5 {[%emt 0:01:31]} 11. Qe2 {[%emt 0:16:43]} a6 {[%emt 0:14:18]} 12. Rc1 {[%emt 0:01:21]} Qb4 {[%emt 0:21:12]} 13. O-O {[%emt 0:15:29]} Qxb2 {[%emt 0:06:47]} 14. Bb3 {[%emt 0:17:10]} Nh5 {[%emt 0:03:11]} 15. Bh2 {[%emt 0:04:45]} Bxc3 {[%emt 0:05:42]} 16. Rc2 Qa3 {[%emt 0:00:24]} 17. Rxc3 {[%emt 0:01:15]} Qa5 {[%emt 0:00:34]} 18. Rfc1 {[%emt 0:01:19]} Nf6 {[%emt 0:00:51]} 19. Rc5 {[%emt 0:04:24]} Qb6 {[%emt 0:02:38]} 20. R5c3 {[%emt 0:00:39]} Qa5 1/2-1/2

[Event "WTCC-50 2018"]
[Site "Radebeul"]
[Date "2018.07.13"]
[Round "7"]
[White "Yermolinsky, Alex"]
[Black "Ruether, Rudolf"]
[Result "1-0"]
[ECO "D52"]
[WhiteElo "2505"]
[BlackElo "2118"]
[Annotator "ChessBase"]
[PlyCount "94"]
[EventDate "2018.07.07"]
[EventType "team-tourn"]
[EventCountry "GER"]
[SourceTitle "playchess.com"]
[Source "ChessBase"]
[SourceQuality "1"]
[TimeControl "40/5400+30:1800+30"]

1. d4 {[%emt 0:00:44]} Nf6 {[%emt 0:00:00]} 2. c4 {[%emt 0:00:04]} e6 {[%emt 0:00:22]} 3. Nf3 {[%emt 0:01:10]} d5 {[%emt 0:00:35]} 4. Nc3 {[%emt 0:00:05]} c6 {[%emt 0:00:57]} 5. Bg5 {[%emt 0:00:09]} Nbd7 {[%emt 0:00:33]} 6. e3 {[%emt 0:01:38]} Be7 {[%emt 0:02:43]} 7. Bd3 {[%emt 0:00:11]} O-O {[%emt 0:01:16]} 8. O-O {[%emt 0:00:12]} dxc4 {[%emt 0:02:32]} 9. Bxc4 {[%emt 0:00:05]} Nd5 {[%emt 0:04:10]} 10. Bxe7 {[%emt 0:01:42]} Qxe7 {[%emt 0:00:21]} 11. e4 {[%emt 0:00:28]} Nxc3 {[%emt 0:05:19]} 12. bxc3 {[%emt 0:00:06]} c5 {[%emt 0:00:07]} 13. Re1 {[%emt 0:12:51]} e5 {[%emt 0:20:30]} 14. d5 {[%emt 0:09:32]} Nb6 {[%emt 0:04:07]} 15. Nd2 {[%emt 0:00:07]} Bd7 {[%emt 0:01:04]} 16. a4 {[%emt 0:05:52]} Nc8 {[%emt 0:03:56]} 17. Bb5 {[%emt 0:02:22]} Nd6 {[%emt 0:03:47]} 18. Qe2 {[%emt 0:00:46]} Rfc8 {[%emt 0:01:21]} 19. Reb1 {[%emt 0:07:06]} Rab8 {[%emt 0:03:56]} 20. Bxd7 {[%emt 0:03:53]} Qxd7 {[%emt 0:00:08]} 21. Nc4 {[%emt 0:00:14]} Nxc4 {[%emt 0:04:24]} 22. Qxc4 {[%emt 0:01:49]} Qd6 {[%emt 0:00:14]} 23. Rb2 {[%emt 0:01:05]} Rc7 {[%emt 0:01:49]} 24. Rab1 {[%emt 0:00:08]} h6 {[%emt 0:05:48]} 25. g3 {[%emt 0:00:57]} Kh8 {[%emt 0:01:49]} 26. Kg2 {[%emt 0:00:13]} Kg8 {[%emt 0:01:12]} 27. h4 {[%emt 0:04:26]} Kh8 {[%emt 0:02:51]} 28. Rb5 {[%emt 0:02:55]} Kg8 {[%emt 0:01:32]} 29. Qe2 {[%emt 0:03:44]} Kh8 {[%emt 0:03:05]} 30. c4 {[%emt 0:00:27]} Kg8 {[%emt 0:00:31]} 31. a5 {[%emt 0:01:27]} Kh8 {[%emt 0:01:05]} 32. Qg4 {[%emt 0:00:07]} b6 {[%emt 0:11:47]} 33. h5 {[%emt 0:02:28]} Rcb7 {[%emt 0:01:44]} 34. R5b3 {[%emt 0:01:36]} Kg8 {[%emt 0:01:14]} 35. Ra3 {[%emt 0:00:56]} Qc7 {[%emt 0:03:21]} 36. Qf5 {[%emt 0:02:22]} Qd6 {[%emt 0:01:13]} 37. axb6 {[%emt 0:01:31]} axb6 {[%emt 0:01:05]} 38. Ra6 {[%emt 0:00:25]} Re8 {[%emt 0:03:20]} 39. Rba1 {[%emt 0:00:59]} Qe7 {[%emt 0:01:05]} 40. Ra8 {[%emt 0:00:47]} Rbb8 {[%emt 0:02:09]} 41. R8a7 {[%emt 0:34:00]} Rb7 {[%emt 0:03:51]} 42. Rxb7 {[%emt 0:00:00]} Qxb7 {[%emt 0:00:08]} 43. d6 {[%emt 0:00:00]} Re6 {[%emt 0:08:47]} 44. Rd1 {[%emt 0:00:00]} Qd7 {[%emt 0:00:26]} 45. Rd5 {[%emt 0:00:00]} f6 {[%emt 0:06:05]} 46. Qxe6+ {[%emt 0:00:00]} Kf8 47. Qf5 Kf7 1-0

[Event "WTCC-50 2018"]
[Site "Radebeul"]
[Date "2018.07.13"]
[Round "7"]
[White "Schlosser, Philipp"]
[Black "Kryukova, Irina"]
[Result "1/2-1/2"]
[ECO "A05"]
[WhiteElo "2501"]
[BlackElo "2249"]
[Annotator "ChessBase"]
[PlyCount "85"]
[EventDate "2018.07.07"]
[EventType "team-tourn"]
[EventCountry "GER"]
[SourceTitle "playchess.com"]
[Source "ChessBase"]
[SourceQuality "1"]
[TimeControl "40/5400+30:1800+30"]

1. Nf3 {[%emt 0:01:02]} Nf6 {[%emt 0:00:00]} 2. c4 {[%emt 0:00:17]} e6 {[%emt 0:00:06]} 3. Nc3 {[%emt 0:00:21]} d5 {[%emt 0:01:32]} 4. d4 {[%emt 0:00:09]} Be7 {[%emt 0:08:36]} 5. g3 {[%emt 0:00:19]} O-O {[%emt 0:02:13]} 6. Bg2 {[%emt 0:00:13]} b6 {[%emt 0:03:07]} 7. cxd5 {[%emt 0:02:47]} exd5 {[%emt 0:01:09]} 8. O-O {[%emt 0:03:20]} Bb7 {[%emt 0:01:07]} 9. Bf4 {[%emt 0:00:25]} Nh5 {[%emt 0:03:08]} 10. Bd2 {[%emt 0:07:18]} Nf6 {[%emt 0:06:10]} 11. Qc2 {[%emt 0:03:53]} Nbd7 {[%emt 0:02:49]} 12. Rac1 {[%emt 0:05:25]} c5 {[%emt 0:07:08]} 13. Rfd1 {[%emt 0:05:35]} Rc8 {[%emt 0:09:28]} 14. Bf4 {[%emt 0:14:40]} a6 {[%emt 0:10:07]} 15. dxc5 {[%emt 0:04:54]} Nxc5 {[%emt 0:06:03]} 16. Nd4 {[%emt 0:09:20]} Nce4 {[%emt 0:05:39]} 17. Qb3 {[%emt 0:01:07]} Nc5 {[%emt 0:01:55]} 18. Qc2 {[%emt 0:00:02]} Nce4 {[%emt 0:00:09]} 19. Qd3 {[%emt 0:00:27]} Qd7 {[%emt 0:06:44]} 20. Qb1 {[%emt 0:07:40]} Nxc3 {[%emt 0:05:03]} 21. Rxc3 {[%emt 0:03:23]} Rxc3 {[%emt 0:01:47]} 22. bxc3 {[%emt 0:00:04]} b5 {[%emt 0:05:10]} 23. Nf5 {[%emt 0:01:30]} Bc5 {[%emt 0:03:00]} 24. Be3 {[%emt 0:08:45]} Qc7 {[%emt 0:02:24]} 25. Bd4 {[%emt 0:02:46]} Bxd4 {[%emt 0:02:58]} 26. cxd4 {[%emt 0:00:03]} Rc8 {[%emt 0:01:50]} 27. a4 {[%emt 0:02:13]} g6 {[%emt 0:02:38]} 28. Ne3 {[%emt 0:00:09]} bxa4 {[%emt 0:00:35]} 29. Qb4 {[%emt 0:03:49]} Qd7 {[%emt 0:00:34]} 30. Ra1 {[%emt 0:07:10]} Bc6 {[%emt 0:00:46]} 31. Qb6 {[%emt 0:00:57]} Kg7 {[%emt 0:00:30]} 32. Bf3 {[%emt 0:00:39]} Bb5 {[%emt 0:00:31]} 33. h4 {[%emt 0:00:39]} h5 {[%emt 0:00:17]} 34. Kg2 {[%emt 0:00:27]} Rc6 {[%emt 0:00:52]} 35. Qa5 {[%emt 0:01:27]} Rc8 {[%emt 0:00:34]} 36. Qb6 {[%emt 0:00:56]} Rc6 {[%emt 0:00:05]} 37. Qb8 {[%emt 0:00:08]} Rc8 {[%emt 0:00:32]} 38. Qf4 {[%emt 0:00:25]} Re8 {[%emt 0:01:00]} 39. Ra2 {[%emt 0:02:00]} Rc8 {[%emt 0:00:25]} 40. Qe5 {[%emt 0:01:25]} Re8 {[%emt 0:00:14]} 41. Qf4 {[%emt 0:30:05]} Rc8 {[%emt 0:05:09]} 42. Qe5 {[%emt 0:00:00]} Re8 {[%emt 0:04:49]} 43. Qf4 {[%emt 0:00:00]} 1/2-1/2

[Event "WTCC-50 2018"]
[Site "Radebeul"]
[Date "2018.07.13"]
[Round "7"]
[White "Volke, Karsten"]
[Black "Fatalibekova, Elena"]
[Result "1/2-1/2"]
[ECO "E44"]
[WhiteElo "2474"]
[BlackElo "2195"]
[Annotator "RC"]
[PlyCount "116"]
[EventDate "2018.07.07"]
[EventType "team-tourn"]
[EventCountry "GER"]
[SourceTitle "playchess.com"]
[Source "ChessBase"]
[SourceQuality "1"]
[TimeControl "40/5400+30:1800+30"]

1. d4 {[%emt 0:00:47]} Nf6 {[%emt 0:00:00]} 2. c4 {[%emt 0:00:08]} e6 {[%emt 0:00:00]} 3. Nc3 {[%emt 0:00:12]} Bb4 {[%emt 0:00:00]} 4. e3 {[%emt 0:00:12]} b6 {[%emt 0:00:09]} 5. Nge2 {[%emt 0:00:23]} Ne4 {[%emt 0:00:46]} 6. Bd2 {[%emt 0:00:50]} Nxd2 {[%emt 0:00:31]} 7. Qxd2 {[%emt 0:00:08]} d5 {[%emt 0:06:00]} 8. cxd5 {[%emt 0:02:48]} exd5 {[%emt 0:00:18]} 9. a3 {[%emt 0:00:21]} Be7 {[%emt 0:01:03]} 10. g3 {[%emt 0:00:23]} O-O {[%emt 0:04:41]} 11. Bg2 {[%emt 0:00:21]} c6 {[%emt 0:00:36]} 12. O-O {[%emt 0:01:05]} Nd7 {[%emt 0:01:15]} 13. b4 {[%emt 0:07:14]} Nf6 {[%emt 0:00:19]} 14. Nf4 {[%emt 0:06:49]} Bd6 {[%emt 0:06:16]} 15. Nd3 {[%emt 0:15:28]} Ba6 {[%emt 0:01:51]} 16. Rfc1 {[%emt 0:01:09]} Rc8 {[%emt 0:01:21]} 17. Ne5 {[%emt 0:08:11]} Re8 {[%emt 0:15:52]} 18. f4 {[%emt 0:00:15]} Bb7 {[%emt 0:01:27]} 19. Qb2 {[%emt 0:11:26]} Qe7 {[%emt 0:00:55]} 20. Qb3 {[%emt 0:01:57]} Red8 {[%emt 0:09:41]} 21. h3 {[%emt 0:07:59]} Bb8 {[%emt 0:07:15]} 22. g4 {[%emt 0:02:18]} b5 {[%emt 0:00:22]} 23. Re1 {[%emt 0:02:23]} Bxe5 {[%emt 0:10:22]} 24. fxe5 {[%emt 0:04:38]} Nd7 {[%emt 0:00:28]} 25. e4 {[%emt 0:01:59]} Nb6 {[%emt 0:00:59]} 26. exd5 {[%emt 0:00:08]} Nxd5 {[%emt 0:00:10]} 27. Nxd5 {[%emt 0:03:08]} cxd5 {[%emt 0:03:04]} 28. Rac1 {[%emt 0:00:07]} Rc4 {[%emt 0:01:03]} 29. Qe3 {[%emt 0:00:12]} Rdc8 {[%emt 0:00:45]} 30. Bf1 {[%emt 0:00:28]} Rxc1 {[%emt 0:08:02]} 31. Rxc1 {[%emt 0:00:19]} Rxc1 {[%emt 0:01:43]} 32. Qxc1 {[%emt 0:00:07]} a6 {[%emt 0:06:17]} 33. Qc5 {[%emt 0:00:40]} Qg5 {[%emt 0:01:26]} 34. Qc7 {[%emt 0:01:00]} Qe3+ {[%emt 0:00:08]} 35. Kh1 {[%emt 0:00:14]} h5 {[%emt 0:02:33]} 36. Qxb7 {[%emt 0:01:06]} Qc1 {[%emt 0:02:43]} 37. Kg2 {[%emt 0:11:17]} Qd2+ {[%emt 0:00:33]} 38. Kf3 {[%emt 0:03:52]} Qc3+ {[%emt 0:00:25]} 39. Ke2 {[%emt 0:00:54]} Qc2+ {[%emt 0:00:35]} 40. Ke1 {[%emt 0:00:15]} Qc1+ {[%emt 0:00:22]} 41. Kf2 {[%emt 0:31:04]} Qf4+ {[%emt 0:30:40]} 42. Ke2 {[%emt 0:05:03]} Qe4+ {[%emt 0:00:26]} 43. Kd2 {[%emt 0:00:00]} Qxd4+ {[%emt 0:00:00]} 44. Bd3 {[%emt 0:00:00]} Qb2+ {[%emt 0:00:00]} 45. Kd1 {[%emt 0:00:00]} Qa1+ {[%emt 0:00:00]} 46. Ke2 {[%emt 0:00:00]} Qxe5+ {[%emt 0:00:00]} 47. Kf3 {[%emt 0:00:00]} Qf6+ {[%emt 0:00:00]} 48. Kg2 {[%emt 0:00:00]} Qb2+ {[%emt 0:00:00]} 49. Kf3 {[%emt 0:00:00]} Qf6+ {[%emt 0:00:00]} 50. Ke2 {[%emt 0:00:00]} Qb2+ {[%emt 0:00:00]} 51. Kd1 {[%emt 0:00:00]} Qa1+ {[%emt 0:00:00]} 52. Kd2 {[%emt 0:00:00]} Qb2+ {[%emt 0:00:00]} 53. Bc2 {[%emt 0:00:00]} Qd4+ {[%emt 0:00:00]} 54. Bd3 {[%emt 0:00:00]} Qb2+ {[%emt 0:00:00]} 55. Kd1 {[%emt 0:00:00]} Qa1+ {[%emt 0:00:00]} 56. Ke2 {[%emt 0:00:00]} Qe5+ {[%emt 0:00:00]} 57. Kf3 {[%emt 0:02:37]} Qf6+ {[%emt 0:00:00]} 58. Kg2 {[%emt 0:02:30]} Qb2+ {[%emt 0:00:00]} 1/2-1/2

[Event "WTCC-50 2018"]
[Site "Radebeul"]
[Date "2018.07.13"]
[Round "7"]
[White "Casper, Thomas"]
[Black "Ehlvest, Jaan"]
[Result "1-0"]
[ECO "C24"]
[WhiteElo "2354"]
[BlackElo "2536"]
[Annotator "ChessBase"]
[PlyCount "79"]
[EventDate "2018.07.07"]
[EventType "team-tourn"]
[EventCountry "GER"]
[SourceTitle "playchess.com"]
[Source "ChessBase"]
[SourceQuality "1"]
[TimeControl "40/5400+30:1800+30"]

1. e4 {[%emt 0:00:00]} e5 {[%emt 0:00:32]} 2. Bc4 {[%emt 0:00:08]} Nf6 {[%emt 0:00:15]} 3. d3 {[%emt 0:00:10]} Nc6 {[%emt 0:01:32]} 4. Nc3 {[%emt 0:00:19]} Na5 {[%emt 0:01:16]} 5. Nge2 {[%emt 0:00:13]} Be7 {[%emt 0:00:34]} 6. O-O {[%emt 0:01:07]} O-O {[%emt 0:04:13]} 7. Ng3 {[%emt 0:01:04]} d6 {[%emt 0:00:37]} 8. Bb3 {[%emt 0:16:37]} Nxb3 {[%emt 0:15:20]} 9. axb3 {[%emt 0:00:19]} d5 {[%emt 0:01:29]} 10. h3 {[%emt 0:21:05]} c6 {[%emt 0:16:10]} 11. Qf3 {[%emt 0:02:02]} g6 {[%emt 0:11:36]} 12. Bg5 {[%emt 0:06:28]} Be6 {[%emt 0:01:44]} 13. exd5 {[%emt 0:07:40]} cxd5 {[%emt 0:07:29]} 14. Rfe1 {[%emt 0:00:56]} d4 {[%emt 0:01:43]} 15. Nb5 {[%emt 0:01:25]} Nd7 {[%emt 0:11:47]} 16. Bxe7 {[%emt 0:01:26]} Qxe7 {[%emt 0:00:02]} 17. Qxb7 {[%emt 0:25:17]} Qb4 {[%emt 0:00:14]} 18. Qa6 {[%emt 0:01:58]} Rfc8 {[%emt 0:02:08]} 19. Re2 {[%emt 0:03:01]} Rab8 {[%emt 0:05:30]} 20. Nd6 {[%emt 0:02:24]} Rd8 {[%emt 0:03:34]} 21. Nc4 {[%emt 0:00:49]} Bxc4 {[%emt 0:01:31]} 22. bxc4 {[%emt 0:00:01]} Qxb2 {[%emt 0:02:18]} 23. Qxa7 {[%emt 0:00:30]} f5 {[%emt 0:03:26]} 24. Qa5 {[%emt 0:02:55]} Kg7 {[%emt 0:02:03]} 25. Rae1 {[%emt 0:00:07]} Qb7 {[%emt 0:01:18]} 26. f4 {[%emt 0:00:55]} Ra8 {[%emt 0:00:58]} 27. Qd2 {[%emt 0:00:03]} Re8 {[%emt 0:00:43]} 28. fxe5 {[%emt 0:00:38]} Re6 {[%emt 0:00:06]} 29. Qf4 {[%emt 0:00:58]} Qb6 {[%emt 0:00:04]} 30. Nf1 {[%emt 0:00:18]} Rd8 {[%emt 0:02:10]} 31. Nd2 {[%emt 0:00:34]} Nc5 {[%emt 0:00:04]} 32. Nf3 {[%emt 0:00:39]} h6 {[%emt 0:00:04]} 33. h4 {[%emt 0:00:42]} Re7 {[%emt 0:01:06]} 34. e6 {[%emt 0:00:15]} Nxe6 {[%emt 0:01:01]} 35. Qe5+ {[%emt 0:00:33]} Kf7 {[%emt 0:00:40]} 36. h5 {[%emt 0:00:26]} Rg8 {[%emt 0:00:09]} 37. Qd5 {[%emt 0:01:43]} Rd8 {[%emt 0:01:05]} 38. hxg6+ {[%emt 0:00:41]} Kf6 {[%emt 0:00:06]} 39. Qe5+ {[%emt 0:00:52]} Kxg6 {[%emt 0:00:03]} 40. Nh4+ {[%emt 0:00:18]} 1-0

[Event "WTCC-50 2018"]
[Site "Radebeul"]
[Date "2018.07.13"]
[Round "7"]
[White "Wolf, Volker"]
[Black "Jhunjhnuwala, Ramesh"]
[Result "1/2-1/2"]
[ECO "B40"]
[WhiteElo "2323"]
[BlackElo "2260"]
[Annotator "NA"]
[PlyCount "80"]
[EventDate "2018.07.07"]
[EventType "team-tourn"]
[EventCountry "GER"]
[SourceTitle "playchess.com"]
[Source "ChessBase"]
[SourceQuality "1"]
[TimeControl "40/5400+30:1800+30"]

1. e4 {[%emt 0:00:00]} c5 {[%emt 0:00:00]} 2. Nf3 {[%emt 0:00:00]} e6 {[%emt 0:00:00]} 3. b3 {[%emt 0:01:04]} d6 {[%emt 0:02:29]} 4. d4 {[%emt 0:00:29]} cxd4 {[%emt 0:00:14]} 5. Nxd4 {[%emt 0:00:13]} a6 {[%emt 0:00:35]} 6. Bd3 {[%emt 0:01:55]} Nf6 {[%emt 0:01:04]} 7. O-O {[%emt 0:00:16]} Be7 {[%emt 0:00:32]} 8. c4 {[%emt 0:00:14]} O-O {[%emt 0:00:45]} 9. Nc3 {[%emt 0:00:10]} Qc7 {[%emt 0:04:41]} 10. Bb2 {[%emt 0:00:15]} Nbd7 {[%emt 0:06:29]} 11. Qe2 {[%emt 0:01:02]} b6 {[%emt 0:03:52]} 12. Rae1 {[%emt 0:01:14]} Rd8 {[%emt 0:20:51]} 13. f4 {[%emt 0:05:35]} Nf8 {[%emt 0:03:42]} 14. Kh1 {[%emt 0:02:56]} Bb7 {[%emt 0:02:08]} 15. Bb1 {[%emt 0:01:21]} Rac8 {[%emt 0:01:58]} 16. Qf2 {[%emt 0:15:28]} N6d7 {[%emt 0:03:26]} 17. Nf3 {[%emt 0:23:31]} Bf6 {[%emt 0:08:45]} 18. Qg3 {[%emt 0:06:23]} g6 {[%emt 0:03:59]} 19. Re2 {[%emt 0:02:12]} Bg7 {[%emt 0:01:16]} 20. Rc1 {[%emt 0:09:47]} Bc6 {[%emt 0:02:32]} 21. Qe1 {[%emt 0:07:40]} Nc5 {[%emt 0:05:04]} 22. b4 {[%emt 0:02:21]} Ncd7 {[%emt 0:01:32]} 23. Nd5 {[%emt 0:02:02]} exd5 {[%emt 0:07:04]} 24. cxd5 {[%emt 0:00:09]} Bxb2 {[%emt 0:00:37]} 25. Rxc6 {[%emt 0:00:27]} Qb7 {[%emt 0:00:55]} 26. Rxc8 {[%emt 0:00:21]} Rxc8 {[%emt 0:01:16]} 27. Rxb2 {[%emt 0:00:05]} Rc7 {[%emt 0:01:58]} 28. Nd4 {[%emt 0:02:13]} b5 {[%emt 0:01:19]} 29. Nc6 {[%emt 0:01:14]} Nb8 {[%emt 0:00:24]} 30. Nxb8 {[%emt 0:05:42]} Qxb8 {[%emt 0:03:45]} 31. Rc2 {[%emt 0:00:02]} Rxc2 {[%emt 0:00:38]} 32. Bxc2 {[%emt 0:00:04]} Qc8 {[%emt 0:00:29]} 33. Bb3 {[%emt 0:00:18]} Nd7 {[%emt 0:01:34]} 34. e5 {[%emt 0:01:55]} dxe5 {[%emt 0:00:11]} 35. fxe5 {[%emt 0:00:02]} Nxe5 {[%emt 0:00:08]} 36. h3 {[%emt 0:00:42]} Qf5 {[%emt 0:01:10]} 37. Qd2 {[%emt 0:05:19]} Kf8 {[%emt 0:03:45]} 38. Qd4 {[%emt 0:01:22]} Qf1+ 39. Kh2 Qe2 40. Qc5+ Kg7 1/2-1/2